fUST/lending_fUST_20240611
["ID","MTS","AMOUNT","RATE_DAILY","PERIOD"]
[329109846,1718111442879,-500.0,0.00021917,2]
[329109847,1718111442890,-632.83241667,0.00021917,2]
[329109848,1718111442901,-500.0,0.00021917,2]
[329109849,1718111442911,-500.0,0.00021917,2]
[329109850,1718111442922,-500.0,0.00021917,2]
[329109851,1718111442932,-500.0,0.00021917,2]
[329109852,1718111442943,-500.0,0.00021917,2]
[329109853,1718111442954,-500.0,0.00021917,2]
[329109855,1718111442964,-500.0,0.00021917,2]
[329109856,1718111442975,-500.0,0.00021917,2]
[329109858,1718111442985,-500.0,0.00021917,2]
[329109860,1718111442994,-500.0,0.00021917,2]
[329109861,1718111443004,-500.0,0.00021917,2]
[329109862,1718111443015,-637.79,0.00021917,2]
[329109863,1718111443026,-500.0,0.00021917,2]
[329109864,1718111443037,-500.0,0.00021917,2]
[329109865,1718111443047,-500.0,0.00021917,2]
[329109866,1718111443057,-500.0,0.00021917,2]
[329109867,1718111443067,-500.0,0.00021917,2]
[329109868,1718111443077,-500.0,0.00021917,2]
[329109869,1718111443087,-500.25605501,0.00021917,2]
[329109870,1718111443097,-500.0,0.00021917,2]
[329109871,1718111443107,-364.69045059,0.00021917,2]
[329109872,1718111443117,-500.0,0.00021917,2]
[329109873,1718111443127,-500.0,0.00021917,2]
[329109874,1718111443137,-500.0,0.00021917,2]
[329109875,1718111443146,-500.0,0.00021917,2]
[329109876,1718111443156,-500.34839451,0.00021917,2]
[329109877,1718111443170,-500.0,0.00021917,2]
[329109878,1718111443185,-500.0,0.00021917,2]
[329109879,1718111443196,-565.56317313,0.00021917,2]
[329109881,1718111443206,-500.0,0.00021917,2]
[329109883,1718111443216,-500.0,0.00021917,2]
[329109885,1718111443227,-500.0,0.00021917,2]
[329109887,1718111443237,-501.41958495,0.00021917,2]
[329109889,1718111443248,-500.0,0.00021917,2]
[329109891,1718111443259,-500.0,0.00021917,2]
[329109893,1718111443269,-500.0,0.00021917,2]
[329109895,1718111443279,-500.0,0.00021917,2]
[329109897,1718111443289,-536.77771604,0.00021917,2]
[329109898,1718111443299,-500.0,0.00021917,2]
[329109900,1718111443310,-500.0,0.00021917,2]
[329109901,1718111443320,-500.0,0.00021917,2]
[329109903,1718111443330,-500.0,0.00021917,2]
[329109905,1718111443340,-500.0,0.00021917,2]
[329109906,1718111443350,-500.0,0.00021917,2]
[329109908,1718111443360,-500.0,0.00021917,2]
[329109909,1718111443370,-500.0,0.00021917,2]
[329109911,1718111443381,-500.0,0.00021917,2]
[329109913,1718111443391,-500.0,0.00021917,2]
[329109914,1718111443401,-500.0,0.00021917,2]
[329109916,1718111443411,-500.0,0.00021917,2]
[329109917,1718111443421,-500.0,0.00021917,2]
[329109919,1718111443431,-500.0,0.00021917,2]
[329109921,1718111443442,-500.0,0.00021917,2]
[329109922,1718111443452,-500.0,0.00021917,2]
[329109924,1718111443462,-500.0,0.00021917,2]
[329109926,1718111443472,-337.97621532,0.00021917,2]
[329109928,1718111443484,-500.0,0.00021917,2]
[329109929,1718111443494,-500.0,0.00021917,2]
[329109930,1718111443504,-505.49812976,0.00021917,2]
[329109932,1718111443514,-525.03726627,0.00021917,2]
[329109933,1718111443524,-500.0,0.00021917,2]
[329109935,1718111443535,-500.0,0.00021917,2]
[329109938,1718111443548,-500.0,0.00021917,2]
[329109939,1718111443558,-500.0,0.00021917,2]
[329109941,1718111443568,-500.0,0.00021917,2]
[329109942,1718111443579,-500.0,0.00021917,2]
[329109944,1718111443589,-502.86779515,0.00021917,2]
[329109945,1718111443599,-500.0,0.00021917,2]
[329109947,1718111443609,-500.0,0.00021917,2]
[329109949,1718111443619,-500.0,0.00021917,2]
[329109950,1718111443629,-500.0,0.00021917,2]
[329109952,1718111443639,-500.0,0.00021917,2]
[329109954,1718111443651,-500.0,0.00021917,2]
[329109956,1718111443662,-500.0,0.00021917,2]
[329109958,1718111443674,-569.99529701,0.00021917,2]
[329109959,1718111443684,-613.15770546,0.00021917,2]
[329109961,1718111443694,-500.0,0.00021917,2]
[329109963,1718111443704,-506.51533363,0.00021917,2]
[329109964,1718111443715,-500.0,0.00021917,2]
[329109966,1718111443725,-500.0,0.00021917,2]
[329109967,1718111443738,-500.0,0.00021917,2]
[329109968,1718111443748,-500.0,0.00021917,2]
[329109969,1718111443758,-500.0,0.00021917,2]
[329109970,1718111443770,-898.41,0.00021917,2]
[329109972,1718111443780,-251.14926803,0.00021917,2]
[329109974,1718111443790,-507.09658554,0.00021917,2]
[329109976,1718111443800,-500.0,0.00021917,2]
[329109978,1718111443810,-500.0,0.00021917,2]
[329109980,1718111443821,-504.12256724,0.00021917,2]
[329109981,1718111443831,-500.0,0.00021917,2]
[329109983,1718111443841,-785.56,0.00021917,2]
[329109985,1718111443851,-500.0,0.00021917,2]
[329109987,1718111443866,-500.0,0.00021917,2]
[329109989,1718111443876,-621.08879066,0.00021917,2]
[329109991,1718111443886,-500.0,0.00021917,2]
[329109993,1718111443896,-500.0,0.00021917,2]
[329109996,1718111443907,-500.0,0.00021917,2]
[329109998,1718111443917,-500.0,0.00021917,2]
[329110000,1718111443927,-500.0,0.00021917,2]
[329110002,1718111443937,-500.0,0.00021917,2]
[329110003,1718111443951,-500.0,0.00021917,2]
[329110004,1718111443960,-500.0,0.00021917,2]
[329110005,1718111443971,-500.0,0.00021917,2]
[329110006,1718111443983,-500.0,0.00021917,2]
[329110007,1718111444064,-546.34061276,0.00021917,2]
[329110008,1718111444084,-500.0,0.00021917,2]
[329110009,1718111444094,-500.0,0.00021917,2]
[329110010,1718111444106,-500.0,0.00021917,2]
[329110011,1718111444115,-500.0,0.00021917,2]
[329110012,1718111444125,-503.09898158,0.00021917,2]
[329110013,1718111444135,-500.0,0.00021917,2]
[329110014,1718111444146,-500.0,0.00021917,2]
[329110015,1718111444156,-500.0,0.00021917,2]
[329110016,1718111444169,-500.0,0.00021917,2]
[329110017,1718111444183,-501.2120773,0.00021917,2]
[329110019,1718111444196,-510.29838926,0.00021917,2]
[329110020,1718111444206,-526.3240568,0.00021917,2]
[329110022,1718111444217,-500.0,0.00021917,2]
[329110024,1718111444230,-500.0,0.00021917,2]
[329110026,1718111444240,-500.0,0.00021917,2]
[329110028,1718111444251,-500.0,0.00021917,2]
[329110029,1718111444261,-500.0,0.00021917,2]
[329110030,1718111444272,-550.20908396,0.00021917,2]
[329110031,1718111444282,-500.0,0.00021917,2]
[329110032,1718111444292,-500.0,0.00021917,2]
[329110033,1718111444302,-500.0,0.00021917,2]
[329110034,1718111444312,-500.0,0.00021917,2]
[329110035,1718111444322,-500.0,0.00021917,2]
[329110036,1718111444332,-199.37533274,0.00021917,2]
[329110037,1718111444343,-500.0,0.00021917,2]
[329110038,1718111444354,-500.0,0.00021917,2]
[329110039,1718111444364,-500.0,0.00021917,2]
[329110040,1718111444374,-509.12954843,0.00021917,2]
[329110041,1718111444385,-500.0,0.00021917,2]
[329110042,1718111444395,-500.0,0.00021917,2]
[329110043,1718111444406,-500.0,0.00021917,2]
[329110044,1718111444418,-500.0,0.00021917,2]
[329110045,1718111444428,-500.0,0.00021917,2]
[329110046,1718111444440,-500.0,0.00021917,2]
[329110047,1718111444450,-500.0,0.00021917,2]
[329110048,1718111444459,-500.0,0.00021917,2]
[329110049,1718111444469,-546.40192311,0.00021917,2]
[329110050,1718111444481,-500.0,0.00021917,2]
[329110052,1718111444491,-500.0,0.00021917,2]
[329110053,1718111444502,-500.0,0.00021917,2]
[329110054,1718111444512,-500.0,0.00021917,2]
[329110055,1718111444522,-500.0,0.00021917,2]
[329110056,1718111444532,-501.17608346,0.00021917,2]
[329110057,1718111444542,-549.86871283,0.00021917,2]
[329110058,1718111444552,-500.0,0.00021917,2]
[329110059,1718111444562,-500.0,0.00021917,2]
[329110060,1718111444573,-500.0,0.00021917,2]
[329110061,1718111444583,-500.0,0.00021917,2]
[329110062,1718111444594,-500.0,0.00021917,2]
[329110063,1718111444604,-668.9,0.00021917,2]
[329110064,1718111444614,-500.0,0.00021917,2]
[329110065,1718111444625,-500.0,0.00021917,2]
[329110066,1718111444635,-500.93578537,0.00021917,2]
[329110067,1718111444646,-500.0,0.00021917,2]
[329110068,1718111444656,-500.0,0.00021917,2]
[329110069,1718111444666,-500.0,0.00021917,2]
[329110070,1718111444676,-501.08768205,0.00021917,2]
[329110071,1718111444686,-500.0,0.00021917,2]
[329110072,1718111444697,-500.0,0.00021917,2]
[329110073,1718111444707,-500.32483161,0.00021917,2]
[329110074,1718111444717,-500.0,0.00021917,2]
[329110075,1718111444727,-500.0,0.00021917,2]
[329110076,1718111444744,-500.0,0.00021917,2]
[329110077,1718111444754,-500.0,0.00021917,2]
[329110078,1718111444764,-500.0,0.00021917,2]
[329110079,1718111444773,-3460.11,0.00021917,2]
[329110080,1718111444783,-500.0,0.00021917,2]
[329110081,1718111444793,-500.0,0.00021917,2]
[329110082,1718111444803,-500.0,0.00021917,2]
[329110083,1718111444813,-500.0,0.00021917,2]
[329110084,1718111444823,-501.01798456,0.00021917,2]
[329110085,1718111444833,-500.0,0.00021917,2]
[329110086,1718111444844,-500.0,0.00021917,2]
[329110087,1718111444855,-500.0,0.00021917,2]
[329110088,1718111444866,-562.94173045,0.00021917,2]
[329110089,1718111444880,-500.0,0.00021917,2]
[329110090,1718111444890,-500.0,0.00021917,2]
[329110091,1718111444900,-500.0,0.00021917,2]
[329110092,1718111444912,-500.0,0.00021917,2]
[329110093,1718111444922,-500.0,0.00021917,2]
[329110094,1718111444932,-500.0,0.00021917,2]
[329110095,1718111444943,-500.0,0.00021917,2]
[329110096,1718111444955,-500.0,0.00021917,2]
[329110097,1718111444965,-518.95849542,0.00021917,2]
[329110098,1718111444975,-500.0,0.00021917,2]
[329110099,1718111444991,-500.0,0.00021917,2]
[329110100,1718111445000,-500.0,0.00021917,2]
[329110101,1718111445010,-500.0,0.00021917,2]
[329110102,1718111445020,-537.07737752,0.00021917,2]
[329110103,1718111445030,-500.0,0.00021917,2]
[329110104,1718111445040,-506.77564398,0.00021917,2]
[329110105,1718111445050,-500.0,0.00021917,2]
[329110106,1718111445061,-500.0,0.00021917,2]
[329110107,1718111445071,-500.0,0.00021917,2]
[329110108,1718111445081,-12608.78,0.00021917,2]
[329110109,1718111445092,-500.0,0.00021917,2]
[329110110,1718111445101,-500.0,0.00021917,2]
[329110111,1718111445111,-500.0,0.00021917,2]
[329110112,1718111445121,-500.0,0.00021917,2]
[329110113,1718111445132,-500.0,0.00021917,2]
[329110114,1718111445142,-500.0,0.00021917,2]
[329110115,1718111445151,-500.0,0.00021917,2]
[329110116,1718111445162,-502.31125682,0.00021917,2]
[329110117,1718111445175,-500.0,0.00021917,2]
[329110118,1718111445188,-328.43730866,0.00021917,2]
[329110119,1718111445199,-865.96,0.00021917,2]
[329110120,1718111445211,-500.0,0.00021917,2]
[329110121,1718111445222,-500.0,0.00021917,2]
[329110122,1718111445237,-500.0,0.00021917,2]
[329110123,1718111445247,-458.60833137,0.00021917,2]
[329110124,1718111445257,-500.0,0.00021917,2]
[329110125,1718111445268,-572.65556013,0.00021917,2]
[329110130,1718111446054,-987.96443987,0.00021917,2]
[329110131,1718111446142,-500.0,0.00021917,2]
[329110132,1718111446152,-500.0,0.00021917,2]
[329110133,1718111446172,-500.0,0.00021917,2]
[329110134,1718111446185,-1777.02,0.00021917,2]
[329110135,1718111446196,-500.0,0.00021917,2]
[329110136,1718111446206,-500.0,0.00021917,2]
[329110137,1718111446216,-500.0,0.00021917,2]
[329110138,1718111446226,-500.0,0.00021917,2]
[329110139,1718111446237,-500.0,0.00021917,2]
[329110140,1718111446247,-500.0,0.00021917,2]
[329110141,1718111446257,-500.0,0.00021917,2]
[329110142,1718111446267,-500.0,0.00021917,2]
[329110143,1718111446278,-500.0,0.00021917,2]
[329110144,1718111446288,-462.39054181,0.00021917,2]
[329110145,1718111446298,-500.46554124,0.00021917,2]
[329110146,1718111446308,-500.0,0.00021917,2]
[329110147,1718111446318,-500.0,0.00021917,2]
[329110148,1718111446328,-500.0,0.00021917,2]
[329110149,1718111446339,-500.0,0.00021917,2]
[329110150,1718111446349,-2921.92,0.00021917,2]
[329110151,1718111446359,-500.0,0.00021917,2]
[329110152,1718111446369,-503.63462786,0.00021917,2]
[329110153,1718111446380,-500.0,0.00021917,2]
[329110154,1718111446390,-2583.68,0.00021917,2]
[329110155,1718111446400,-500.0,0.00021917,2]
[329110156,1718111446410,-505.95418601,0.00021917,2]
[329110157,1718111446420,-500.0,0.00021917,2]
[329110158,1718111446430,-500.0,0.00021917,2]
[329110159,1718111446440,-500.0,0.00021917,2]
[329110160,1718111446450,-500.0,0.00021917,2]
[329110161,1718111446461,-500.0,0.00021917,2]
[329110162,1718111446471,-452.81905366,0.00021917,2]
[329110163,1718111446483,-500.0,0.00021917,2]
[329110164,1718111446494,-500.36657334,0.00021917,2]
[329110165,1718111446504,-500.0,0.00021917,2]
[329110166,1718111446514,-500.0,0.00021917,2]
[329110167,1718111446524,-500.0,0.00021917,2]
[329110168,1718111446534,-296.02843496,0.00021917,2]
[329110169,1718111446544,-500.0,0.00021917,2]
[329110172,1718111446554,-2242.71,0.00021917,2]
[329110175,1718111446564,-500.0,0.00021917,2]
[329110177,1718111446574,-500.0,0.00021917,2]
[329110179,1718111446585,-500.0,0.00021917,2]
[329110182,1718111446595,-332.12014455,0.00021917,2]
[329110185,1718111446605,-500.0,0.00021917,2]
[329110188,1718111446616,-567.88,0.00021917,2]
[329110191,1718111446627,-502.34144687,0.00021917,2]
[329110194,1718111446636,-500.0,0.00021917,2]
[329110197,1718111446648,-529.98848736,0.00021917,2]
[329110199,1718111446658,-500.0,0.00021917,2]
[329110202,1718111446668,-500.0,0.00021917,2]
[329110205,1718111446678,-500.0,0.00021917,2]
[329110208,1718111446688,-500.0,0.00021917,2]
[329110211,1718111446698,-500.0,0.00021917,2]
[329110214,1718111446708,-500.0,0.00021917,2]
[329110218,1718111446720,-500.0,0.00021917,2]
[329110219,1718111446732,-500.0,0.00021917,2]
[329110221,1718111446742,-500.0,0.00021917,2]
[329110224,1718111446752,-500.0,0.00021917,2]
[329110227,1718111446762,-333.77138253,0.00021917,2]
[329110231,1718111446777,-166.22861747,0.00021917,2]
[329110234,1718111446787,-611.38,0.00021917,2]
[329110236,1718111446797,-520.47170318,0.00021917,2]
[329110238,1718111446807,-500.0,0.00021917,2]
[329110240,1718111446817,-500.0,0.00021917,2]
[329110242,1718111446827,-505.70403239,0.00021917,2]
[329110244,1718111446838,-489.76196364,0.00021917,2]
[329110247,1718111446848,-500.0,0.00021917,2]
[329110249,1718111446865,-500.0,0.00021917,2]
[329110252,1718111446876,-500.0,0.00021917,2]
[329110254,1718111446886,-600.01200765,0.00021917,2]
[329110256,1718111446896,-500.0,0.00021917,2]
[329110258,1718111446907,-500.0,0.00021917,2]
[329110260,1718111446917,-500.0,0.00021917,2]
[329110262,1718111446927,-1926.86,0.00021917,2]
[329110264,1718111446937,-500.0,0.00021917,2]
[329110266,1718111446948,-500.0,0.00021917,2]
[329110268,1718111446958,-500.0,0.00021917,2]
[329110270,1718111446969,-500.0,0.00021917,2]
[329110272,1718111446980,-500.0,0.00021917,2]
[329110274,1718111446991,-500.0,0.00021917,2]
[329110276,1718111447001,-599.09,0.00021917,2]
[329110278,1718111447011,-500.0,0.00021917,2]
[329110280,1718111447020,-516.18877623,0.00021917,2]
[329110282,1718111447031,-500.0,0.00021917,2]
[329110284,1718111447041,-3550.07,0.00021917,2]
[329110286,1718111447051,-505.37365697,0.00021917,2]
[329110287,1718111447060,-274.37286124,0.00021917,2]
[329110289,1718111447070,-2354.36,0.00021917,2]
[329110291,1718111447080,-1218.12,0.00021917,2]
[329110293,1718111447090,-500.0,0.00021917,2]
[329110295,1718111447100,-500.0,0.00021917,2]
[329110297,1718111447109,-1000.0,0.00021917,2]
[329110299,1718111447120,-500.0,0.00021917,2]
[329110302,1718111447130,-500.0,0.00021917,2]
[329110304,1718111447140,-500.0,0.00021917,2]
[329110307,1718111447150,-509.69066738,0.00021917,2]
[329110309,1718111447160,-500.0,0.00021917,2]
[329110312,1718111447172,-500.0,0.00021917,2]
[329110314,1718111447183,-501.78038658,0.00021917,2]
[329110317,1718111447193,-500.0,0.00021917,2]
[329110319,1718111447205,-509.46413491,0.00021917,2]
[329110321,1718111447216,-500.0,0.00021917,2]
[329110322,1718111447226,-500.0,0.00021917,2]
[329110323,1718111447240,-500.0,0.00021917,2]
[329110324,1718111447249,-974.58,0.00021917,2]
[329110325,1718111447259,-520.10187489,0.00021917,2]
[329110326,1718111447268,-500.0,0.00021917,2]
[329110327,1718111447278,-500.0,0.00021917,2]
[329110328,1718111447287,-501.72439855,0.00021917,2]
[329110329,1718111447297,-500.0,0.00021917,2]
[329110330,1718111447307,-1229.1,0.00021917,2]
[329110331,1718111447316,-500.0,0.00021917,2]
[329110332,1718111447326,-189.28216555,0.00021917,2]
[329110333,1718111447336,-500.0,0.00021917,2]
[329110334,1718111447346,-500.0,0.00021917,2]
[329110335,1718111447356,-500.0,0.00021917,2]
[329110336,1718111447366,-166.666666,0.00021918,2]
[329110337,1718111447377,-1000.0,0.00021934,2]
[329110338,1718111447388,-1000.0,0.00021963,2]
[329110339,1718111447398,-240.51849551,0.00021997,2]
[329110340,1718111447408,-5000.61258907,0.00022,2]
[329110342,1718111447419,-1000.0,0.00022011,2]
[329110343,1718111447429,-1000.0,0.00022015,2]
[329110344,1718111447440,-1000.0,0.00022022,2]
[329110345,1718111447450,-1000.0,0.00022028,2]
[329110346,1718111447460,-1000.0,0.00022038,2]
[329110347,1718111447470,-1000.0,0.00022056,2]
[329110348,1718111447482,-1000.0,0.00022065,2]
[329110349,1718111447493,-240.51849551,0.00022091,2]
[329110350,1718111447504,-1000.0,0.00022117,2]
[329110351,1718111447514,-1000.0,0.00022124,2]
[329110352,1718111447525,-1000.0,0.0002215,2]
[329110353,1718111447535,-50653.13072594,0.00022191,2]
[329110354,1718111447702,-659.92725719,0.00021663,2]
[329110356,1718111447797,-692.08642808,0.00022191,2]
[329110357,1718111447812,-19647.25666648,0.00022191,2]
[329110358,1718111447824,-855.0,0.00022191,2]
[329110362,1718111448038,-507.30766513,0.00021917,2]
[329110363,1718111448048,-3870.75837852,0.00022191,2]
[329110364,1718111448061,-2851.45779506,0.00022191,2]
[329110366,1718111448073,-3741.15649222,0.00022191,2]
[329110386,1718111655426,41489.18065832,9.999e-05,2]
[329110396,1718111933902,155.01705188,9.999e-05,2]
[329110402,1718112137463,1827.44527181,0.00014042,2]
[329110403,1718112139132,552.393434,0.00013699,2]
[329110404,1718112151963,456.89676405,0.00013143,2]
[329110405,1718112151998,24443.10323595,0.00013143,2]
[329110406,1718112153705,3734.3213327,0.00013143,2]
[329110410,1718112170053,1220.3181686,0.00013699,2]
[329110411,1718112249102,-300.0,0.00014132,2]
[329110412,1718112249129,-9591.20034243,0.00014133,2]
[329110413,1718112249154,-300.0,0.00014133,2]
[329110414,1718112249179,-1911.54148934,0.00014134,2]
[329110415,1718112249203,-2283.6653707,0.00014134,2]
[329110416,1718112249233,-155.01705188,0.00014135,2]
[329110417,1718112249256,-2114.12320999,0.00014135,2]
[329110418,1718112249277,-347.2585269,0.00014144,2]
[329110419,1718112249299,-1691.451383,0.00015,2]
[329110420,1718112249332,43305.74262576,0.00014132,2]
[329110425,1718112290725,1957.23955595,9.999e-05,2]
[329110427,1718112294379,496.89412378,0.00013699,2]
[329110442,1718112633653,-155.01705188,0.00014133,2]
[329110443,1718112633663,-147.90744812,0.00014134,2]
[329110445,1718112633676,-690.18197407,0.00014134,2]
[329110447,1718112633686,-946.03043459,0.00015,2]
[329110448,1718112633698,-1691.451383,0.00015597,2]
[329110450,1718112633708,-489.40086406,0.000156,2]
[329110452,1718112633718,-2210.23321208,0.00017797,2]
[329110455,1718112633729,-651.39617029,0.00017798,2]
[329110456,1718112633739,-530.20911563,0.00017895,2]
[329110458,1718112633749,-692.46643816,0.00017896,2]
[329110460,1718112633760,-46642.39053624,0.00017897,2]
[329110462,1718112633770,-3560.15898566,0.00017897,2]
[329110464,1718112633782,-1432.81105298,0.00017897,2]
[329110690,1718112639952,-1514.21372609,0.00017897,2]
[329110692,1718112639966,-53085.12013366,0.00017897,2]
[329110693,1718112639977,-10490.37515331,0.00017898,2]
[329110694,1718112639988,-509.03647881,0.00017996,2]
[329110695,1718112639999,-1355.41274288,0.00018,2]
[329110696,1718112640010,-632.90357925,0.00018,2]
[329110697,1718112640021,-876.68948426,0.00018,2]
[329110698,1718112640031,-651.39617027,0.00018803,2]
[329110699,1718112640042,-2360.14365711,0.000189,2]
[329110700,1718112640052,-2210.23321206,0.00019097,2]
[329110701,1718112640063,-500.0,0.00019178,2]
[329110702,1718112640074,-500.0,0.00019178,2]
[329110703,1718112640084,-399.72569273,0.00019178,2]
[329110704,1718112640095,-500.0,0.00019178,2]
[329110705,1718112640105,-209.43261116,0.00019178,2]
[329110706,1718112640117,-172.80564108,0.00019178,2]
[329110707,1718112640128,-163.07446836,0.00019508,2]
[329110708,1718112640139,-1100.27196223,0.00019508,2]
[329110709,1718112640150,-216.23913996,0.00019508,2]
[329110710,1718112640161,-2409.63345823,0.00019508,2]
[329110711,1718112640171,-651.39617027,0.00019808,2]
[329110712,1718112640182,-285.73167299,0.0001982,2]
[329110713,1718112640194,-234.94474719,0.000199,2]
[329110714,1718112640207,-529.07913635,0.0002,4]
[329110715,1718112640217,-191.81480954,0.00020065,2]
[329110716,1718112640228,-9585.69744994,0.00020085,2]
[329110717,1718112640239,-1214.7907142,0.00020085,2]
[329110718,1718112640250,-2210.23321206,0.00020398,2]
[329110719,1718112640262,-552.393434,0.00020548,2]
[329110720,1718112640274,-160.029321,0.00020556,2]
[329110721,1718112640284,-651.39617027,0.00020812,2]
[329110722,1718112640295,-500.0,0.00020999,2]
[329110723,1718112640307,-500.0,0.00020999,2]
[329110724,1718112640318,-500.0,0.00020999,2]
[329110725,1718112640329,-500.0,0.00020999,2]
[329110726,1718112640339,-606.86289072,0.00020999,2]
[329110727,1718112640351,-500.0,0.00020999,2]
[329110728,1718112640362,-500.0,0.00020999,2]
[329110729,1718112640372,-500.0,0.00020999,2]
[329110730,1718112640518,-500.0,0.00020999,2]
[329110731,1718112640529,-500.0,0.00020999,2]
[329110732,1718112640540,-500.0,0.00020999,2]
[329110733,1718112640552,-500.0,0.00020999,2]
[329110734,1718112640564,-500.0,0.00020999,2]
[329110735,1718112640575,-500.0,0.00020999,2]
[329110736,1718112640586,-500.0,0.00020999,2]
[329110737,1718112640598,-539.61775981,0.00020999,2]
[329110738,1718112640609,-500.0,0.00020999,2]
[329110739,1718112640639,-500.0,0.00020999,2]
[329110740,1718112640651,-265.01495699,0.00020999,2]
[329110741,1718112640663,-500.0,0.00020999,2]
[329110742,1718112640674,-500.0,0.00020999,2]
[329110743,1718112640686,-500.0,0.00020999,2]
[329110744,1718112640699,-500.0,0.00020999,2]
[329110745,1718112640709,-500.0,0.00020999,2]
[329110746,1718112640719,-500.0,0.00020999,2]
[329110747,1718112640729,-500.0,0.00020999,2]
[329110748,1718112640738,-500.0,0.00020999,2]
[329110749,1718112640749,-500.0,0.00020999,2]
[329110750,1718112640759,-500.0,0.00020999,2]
[329110751,1718112640770,-500.0,0.00020999,2]
[329110752,1718112640781,-437.91093111,0.00020999,2]
[329110753,1718112640792,-382.57083814,0.00020999,2]
[329110754,1718112640803,-500.0,0.00020999,2]
[329110755,1718112640814,-478.7925023,0.00020999,2]
[329110756,1718112640825,-500.0,0.00020999,2]
[329110757,1718112640836,-500.0,0.00020999,2]
[329110758,1718112640847,-500.0,0.00020999,2]
[329110759,1718112640858,-500.0,0.00020999,2]
[329110760,1718112640869,-500.0,0.00020999,2]
[329110761,1718112640879,-500.0,0.00020999,2]
[329110762,1718112640890,-500.0,0.00020999,2]
[329110763,1718112640900,-500.0,0.00020999,2]
[329110764,1718112640911,-500.0,0.00020999,2]
[329110765,1718112640921,-500.0,0.00020999,2]
[329110766,1718112640932,-500.0,0.00020999,2]
[329110767,1718112640942,-500.0,0.00020999,2]
[329110768,1718112640956,-500.0,0.00020999,2]
[329110769,1718112640966,-500.0,0.00020999,2]
[329110770,1718112640976,-500.0,0.00020999,2]
[329110771,1718112640988,-500.0,0.00020999,2]
[329110772,1718112640998,-500.0,0.00020999,2]
[329110773,1718112641010,-500.0,0.00020999,2]
[329110774,1718112641020,-500.0,0.00020999,2]
[329110775,1718112641031,-500.0,0.00020999,2]
[329110777,1718112641041,-500.0,0.00020999,2]
[329110779,1718112641051,-500.0,0.00020999,2]
[329110780,1718112641062,-500.0,0.00020999,2]
[329110782,1718112641072,-600.0,0.00020999,2]
[329110783,1718112641084,-516.01488837,0.00020999,2]
[329110784,1718112641095,-500.0,0.00020999,2]
[329110785,1718112641105,-500.0,0.00020999,2]
[329110786,1718112641115,-500.0,0.00020999,2]
[329110787,1718112641125,-500.0,0.00020999,2]
[329110788,1718112641135,-500.0,0.00020999,2]
[329110789,1718112641146,-7269.5959632,0.00021,2]
[329110790,1718112641158,-6438.60878076,0.0002158,15]
[329110791,1718112641169,-628.05413053,0.00021581,2]
[329110792,1718112641179,-2210.23321206,0.00021698,2]
[329110793,1718112641190,-151.01510151,0.00021728,4]
[329110794,1718112641202,-359.0,0.00021762,3]
[329110795,1718112641213,-161.5,0.00021762,3]
[329110796,1718112641224,-88888.0,0.00021817,3]
[329110797,1718112641234,-2000.0,0.00021817,2]
[329110798,1718112641244,-651.39617027,0.00021817,2]